Workbook

Sheet Исходные данные
A1: Сегодня | B1: =TODAY() -> 2021-09-14
A2: ИСХОДНЫЕ ДАННЫЕ (ДАТА/СУММА ОПЛАТЫ) ДЛЯ АНАЛИЗА ДЕБИТОРСКОЙ ЗАДОЛЖЕННОСТИ
B3: ввод данных | C3: ввод данных | I3: ввод данных | J3: ввод данных
A4: Клиент | B4: Дата отгрузки | C4: Сумма отгрузки, руб | D4: дата отсрочки | E4: дата оплаты 1 | F4: сумма оплаты 1 , руб | G4: дата оплаты 2 | H4: сумма оплаты 2 , руб | I4: дата оплаты N | J4: сумма оплаты N , руб | K4: дата оплаты текущая | L4: сумма оплаты нарастающим итогом , руб
A5: 1 | B5: 2 -> [дебиторка]! 2 | C5: 3 -> [дебиторка]! 3 | D5: 4 | E5: 5 | F5: 6 | G5: 7 | H5: 8 | I5: 9 | J5: 10 | K5: 11 -> [дебиторка]! 5 | L5: 12 -> [дебиторка]! 6
B6: 2021-02-04 | C6: 25938822.24 | D6: =B6+период_отсрочки -> 2021-03-06 | E6: 2021-03-21 | F6: 0 | G6: 2021-03-24 | H6: 0 | I6: 2021-09-09 | K6: =I6 -> 2021-09-09 | L6: =F6+H6+J6 -> 0
B7: 2021-02-08 | C7: 29707567.85 | D7: 2021-03-10 | E7: 2021-03-25 | F7: 0 | G7: 2021-03-28 | H7: 0 | I7: 2021-09-09 | K7: =I7 -> 2021-09-09 | L7: =F7+H7+J7 -> 0
B8: 2021-02-15 | C8: 29615092.08 | D8: 2021-03-17 | E8: 2021-04-01 | F8: 0 | G8: 2021-04-04 | H8: 0 | I8: 2021-09-09 | K8: 2021-09-09 | L8: =F8+H8+J8 -> 0
B9: 2021-02-26 | C9: 25354420.7 | D9: 2021-03-28 | E9: 2021-04-12 | F9: 0 | G9: 2021-04-15 | H9: 0 | I9: 2021-09-09 | K9: 2021-09-09 | L9: 0
B10: 2021-03-03 | C10: 29601871.82 | D10: 2021-04-02 | E10: 2021-04-17 | F10: 0 | G10: 2021-04-20 | H10: 0 | I10: 2021-09-09 | J10: 1000000 | K10: 2021-09-09 | L10: 1000000
B11: 2021-03-12 | D11: 2021-04-11 | E11: 2021-04-26 | F11: 0 | G11: 2021-04-29 | H11: 0 | I11: 2021-09-09 | J11: 15000000 | K11: 2021-09-09 | L11: 15000000
B12: 2021-03-16 | D12: 2021-04-15 | E12: 2021-04-30 | F12: 0 | G12: 2021-05-03 | H12: 0 | I12: 2021-09-09 | J12: 15000000 | K12: 2021-09-09 | L12: 15000000
B13: 2021-03-19 | C13: 29123331.55 | D13: 2021-04-18 | E13: 2021-05-03 | F13: 0 | G13: 2021-05-06 | H13: 0 | I13: 2021-09-09 | K13: 2021-09-09 | L13: 0
B14: 2021-03-22 | C14: 29227672.49 | D14: 2021-04-21 | E14: 2021-05-06 | F14: 0 | G14: 2021-05-09 | H14: 0 | I14: 2021-09-09 | K14: 2021-09-09 | L14: 0
B15: 2021-03-23 | D15: 2021-04-22 | E15: 2021-05-07 | F15: 0 | G15: 2021-05-10 | H15: 0 | I15: 2021-09-09 | J15: 45000000 | K15: 2021-09-09 | L15: 45000000
B16: 2021-03-30 | D16: 2021-04-29 | E16: 2021-05-14 | F16: 0 | G16: 2021-05-17 | H16: 0 | I16: 2021-09-09 | J16: 10000000 | K16: 2021-09-09 | L16: 10000000
B17: 2021-03-31 | D17: 2021-04-30 | E17: 2021-05-15 | F17: 0 | G17: 2021-05-18 | H17: 0 | I17: 2021-09-09 | J17: 24615902.87 | K17: 2021-09-09 | L17: 24615902.87
B18: 2021-04-01 | C18: 18203997.6 | D18: 2021-05-01 | E18: 2021-05-16 | F18: 0 | G18: 2021-05-19 | H18: 0 | I18: 2021-09-09 | K18: 2021-09-09 | L18: 0
B19: 2021-04-06 | D19: 2021-05-06 | E19: 2021-05-21 | F19: 0 | G19: 2021-05-24 | H19: 0 | I19: 2021-09-09 | J19: 10000000 | K19: 2021-09-09 | L19: 10000000
B20: 2021-04-09 | D20: 2021-05-09 | E20: 2021-05-24 | F20: 0 | G20: 2021-05-27 | H20: 0 | I20: 2021-09-09 | J20: 10000000 | K20: 2021-09-09 | L20: 10000000
B21: 2021-04-13 | D21: 2021-05-13 | E21: 2021-05-28 | F21: 0 | G21: 2021-05-31 | H21: 0 | I21: 2021-09-09 | J21: 3000000 | K21: 2021-09-09 | L21: 3000000
B22: 2021-04-16 | D22: 2021-05-16 | E22: 2021-05-31 | F22: 0 | G22: 2021-06-03 | H22: 0 | I22: 2021-09-09 | J22: 5000000 | K22: 2021-09-09 | L22: 5000000
B23: 2021-04-20 | D23: 2021-05-20 | E23: 2021-06-04 | F23: 0 | G23: 2021-06-07 | H23: 0 | I23: 2021-09-09 | J23: 4000000 | K23: 2021-09-09 | L23: 4000000
B24: 2021-04-22 | C24: 7213916.3 | D24: 2021-05-22 | E24: 2021-06-06 | F24: 0 | G24: 2021-06-09 | H24: 0 | I24: 2021-09-09 | K24: 2021-09-09 | L24: 0
B25: 2021-04-23 | D25: 2021-05-23 | E25: 2021-06-07 | F25: 0 | G25: 2021-06-10 | H25: 0 | I25: 2021-09-09 | J25: 20000000 | K25: 2021-09-09 | L25: 20000000
B26: 2021-04-29 | D26: 2021-05-29 | E26: 2021-06-13 | F26: 0 | G26: 2021-06-16 | H26: 0 | I26: 2021-09-09 | J26: 35952875.86 | K26: 2021-09-09 | L26: 35952875.86
B27: 2021-05-11 | C27: 29582305.87 | D27: 2021-06-10 | E27: 2021-06-25 | F27: 0 | G27: 2021-06-28 | H27: 0 | I27: 2021-09-09 | K27: 2021-09-09 | L27: 0
B28: 2021-06-08 | D28: 2021-07-08 | E28: 2021-07-23 | F28: 0 | G28: 2021-07-26 | H28: 0 | I28: 2021-09-09 | J28: 2000000 | K28: 2021-09-09 | L28: 2000000
B29: 2021-06-09 | C29: 18932506.94 | D29: 2021-07-09 | E29: 2021-07-24 | F29: 0 | G29: 2021-07-27 | H29: 0 | I29: 2021-09-09 | K29: 2021-09-09 | L29: 0
B30: 2021-06-11 | D30: 2021-07-11 | E30: 2021-07-26 | F30: 0 | G30: 2021-07-29 | H30: 0 | I30: 2021-09-09 | J30: 10000000 | K30: 2021-09-09 | L30: 10000000
B31: 2021-06-18 | D31: 2021-07-18 | E31: 2021-08-02 | F31: 0 | G31: 2021-08-05 | H31: 0 | I31: 2021-09-09 | J31: 10000000 | K31: 2021-09-09 | L31: 10000000
B32: 2021-06-22 | D32: 2021-07-22 | E32: 2021-08-06 | F32: 0 | G32: 2021-08-09 | H32: 0 | I32: 2021-09-09 | J32: 40000000 | K32: 2021-09-09 | L32: 40000000
B33: 2021-06-28 | C33: 13806701.21 | D33: 2021-07-28 | E33: 2021-08-12 | F33: 0 | G33: 2021-08-15 | H33: 0 | I33: 2021-09-09 | K33: 2021-09-09 | L33: 0
B34: 2021-06-29 | D34: 2021-07-29 | E34: 2021-08-13 | F34: 0 | G34: 2021-08-16 | H34: 0 | I34: 2021-09-09 | J34: 8000000 | K34: 2021-09-09 | L34: 8000000
B35: 2021-07-01 | C35: 28592703.55 | D35: 2021-07-31 | E35: 2021-08-15 | F35: 0 | G35: 2021-08-18 | H35: 0 | I35: 2021-09-09 | K35: 2021-09-09 | L35: 0
B36: 2021-07-02 | D36: 2021-08-01 | E36: 2021-08-16 | F36: 0 | G36: 2021-08-19 | H36: 0 | I36: 2021-09-09 | J36: 1000000 | K36: 2021-09-09 | L36: 1000000
B37: 2021-07-09 | D37: 2021-08-08 | E37: 2021-08-23 | F37: 0 | G37: 2021-08-26 | H37: 0 | I37: 2021-09-09 | J37: 3000000 | K37: 2021-09-09 | L37: 3000000
B38: 2021-07-13 | D38: 2021-08-12 | E38: 2021-08-27 | F38: 0 | G38: 2021-08-30 | H38: 0 | I38: 2021-09-09 | J38: 5000000 | K38: 2021-09-09 | L38: 5000000
B39: 2021-07-15 | C39: 24757299.5 | D39: 2021-08-14 | E39: 2021-08-29 | F39: 0 | G39: 2021-09-01 | H39: 0 | I39: 2021-09-09 | K39: 2021-09-09 | L39: 0
B40: 2021-07-27 | C40: 28858860.24 | D40: 2021-08-26 | E40: 2021-09-10 | F40: 0 | G40: 2021-09-13 | H40: 0 | I40: 2021-09-09 | K40: 2021-09-09 | L40: 0
B41: 2021-07-30 | D41: 2021-08-29 | E41: 2021-09-13 | F41: 0 | G41: 2021-09-16 | H41: 0 | I41: 2021-09-09 | J41: 8739427.92 | K41: 2021-09-09 | L41: 8739427.92
B42: 2021-08-03 | C42: 24581658.96 | D42: 2021-09-02 | E42: 2021-09-17 | F42: 0 | G42: 2021-09-20 | H42: 0 | I42: 2021-09-09 | K42: 2021-09-09 | L42: 0
B43: 2021-08-10 | D43: 2021-09-09 | E43: 2021-09-24 | F43: 0 | G43: 2021-09-27 | H43: 0 | I43: 2021-09-09 | J43: 20000000 | K43: 2021-09-09 | L43: 20000000
B44: 2021-08-20 | D44: 2021-09-19 | E44: 2021-10-04 | F44: 0 | G44: 2021-10-07 | H44: 0 | I44: 2021-09-09 | J44: 20000000 | K44: 2021-09-09 | L44: 20000000
B45: 2021-08-26 | C45: 35550253.54 | D45: 2021-09-25 | E45: 2021-10-10 | F45: 0 | G45: 2021-10-13 | H45: 0 | I45: 2021-09-09 | K45: 2021-09-09 | L45: 0
B46: 2021-08-31 | C46: 6952888.01 | D46: 2021-09-30 | E46: 2021-10-15 | F46: 0 | G46: 2021-10-18 | H46: 0 | I46: 2021-09-09 | J46: 10000000 | K46: 2021-09-09 | L46: 10000000
B47: 2021-09-03 | C47: 6911768.38 | D47: 2021-10-03 | E47: 2021-10-18 | F47: 0 | G47: 2021-10-21 | H47: 0 | I47: 2021-09-09 | K47: 2021-09-09 | L47: 0
B48: 2021-09-07 | D48: 2021-10-07 | E48: 2021-10-22 | F48: 0 | G48: 2021-10-25 | H48: 0 | I48: 2021-09-09 | J48: 5000000 | K48: 2021-09-09 | L48: 5000000
B49: 2021-09-10 | D49: =IF(F49>0,VALUE(#REF!),"") ->  | I49: 2021-09-09 | J49: 25000000 | K49: 2021-09-09 | L49: 25000000
D50: =IF(F50>0,VALUE(#REF!),"") -> 
C51: =SUM(C6:C50) -> 442513638.8 | J51: =SUM(J6:J50) -> 366308206.7 | L51: =SUM(L6:L50) -> 366308206.7

Sheet Дебиторка
A1: Сегодня | B1: =TODAY() -> 2021-09-14 | E1: отсрочка, дней | F1: 30
J2: задолженность
A3: Клиент | B3: Дата отгрузки | C3: Сумма отгрузки, руб | D3: Сумма отгрузки, нарастающим итогом, руб. | E3: дата отсрочки | F3: дата оплаты текущая? | G3: число дней просрочки | H3: сумма оплаты , руб | I3: сумма оплаты нарастающим итогом , руб | J3: До 7 дней | K3: От 8 до 15 дней | L3: От 16 до 30 дней | M3: От 31 до 60 дней | N3: От 61 до 90 дней | O3: Свыше 90 дней | P3: Задолженность нарастающим итогом, итого, руб.
A4: 1 | B4: 2 = [исходные данные]! 2 | C4: 3 = [исходные данные]! 3 | D4: 4 | E4: 5 | F4: 6 = [исходные данные]!11 | G4: 7 = сегодня() - 2 | H4: 8 = [исходные данные]!12 | I4: 9 | J4: 10 | K4: 11 | L4: 12 | M4: 13 | N4: 14 | O4: 15 | P4: 16 =4 - 9
J5: 000-007 | K5: 008-015 | L5: 016-030 | M5: 031-060 | N5: 061-090 | O5: 090-999
B6: ='Исходные данные'!B6 -> 2021-02-04 | C6: ='Исходные данные'!C6 -> 25938822.24 | D6: =C6 -> 25938822.24 | E6: =B6+период_отсрочки -> 2021-03-06 | G6: =сего_дня-B6 -> 1900-08-09 | H6: ='Исходные данные'!L6 -> 0 | I6: =H6 -> 0 | J6: =IFERROR(IF(AND($G6>=--LEFT(J$5,3),$G6<=--RIGHT(J$5,3)),INDEX($A$6:$P$53,ROW()-5,COLUMN(задолженность)),"-"),"") -> - | K6: - | L6: - | M6: - | N6: - | O6: 25938822.24 | P6: =IF(D6="","",D6-I6) -> 25938822.24
B7: ='Исходные данные'!B7 -> 2021-02-08 | C7: ='Исходные данные'!C7 -> 29707567.85 | D7: =D6+C7 -> 55646390.09 | E7: =B7+период_отсрочки -> 2021-03-10 | G7: =сего_дня-B7 -> 1900-08-05 | H7: ='Исходные данные'!L7 -> 0 | I7: =I6+H7 -> 0 | J7: - | K7: - | L7: - | M7: - | N7: - | O7: 55646390.09 | P7: 55646390.09
B8: ='Исходные данные'!B8 -> 2021-02-15 | C8: ='Исходные данные'!C8 -> 29615092.08 | D8: =D7+C8 -> 85261482.17 | E8: =B8+период_отсрочки -> 2021-03-17 | G8: =сего_дня-B8 -> 1900-07-29 | H8: ='Исходные данные'!L8 -> 0 | I8: =I7+H8 -> 0 | J8: - | K8: - | L8: - | M8: - | N8: - | O8: 85261482.17 | P8: 85261482.17
B9: ='Исходные данные'!B9 -> 2021-02-26 | C9: ='Исходные данные'!C9 -> 25354420.7 | D9: =D8+C9 -> 110615902.9 | E9: =B9+период_отсрочки -> 2021-03-28 | G9: =сего_дня-B9 -> 1900-07-18 | H9: ='Исходные данные'!L9 -> 0 | I9: 0 | J9: - | K9: - | L9: - | M9: - | N9: - | O9: 110615902.9 | P9: 110615902.9
B10: ='Исходные данные'!B10 -> 2021-03-03 | C10: ='Исходные данные'!C10 -> 29601871.82 | D10: =D9+C10 -> 140217774.7 | E10: =B10+период_отсрочки -> 2021-04-02 | F10: 2021-03-03 | G10: =сего_дня-B10 -> 1900-07-13 | H10: ='Исходные данные'!L10 -> 1000000 | I10: =I9+H10 -> 1000000 | J10: - | K10: - | L10: - | M10: - | N10: - | O10: 139217774.7 | P10: 139217774.7
C11: ='Исходные данные'!C11 -> 0 | D11: 140217774.7 | E11: =B11+период_отсрочки -> 1900-01-30 | F11: 2021-03-12 | G11: =сего_дня-B11 -> 2021-09-14 | H11: ='Исходные данные'!L11 -> 15000000 | I11: 16000000 | J11: - | K11: - | L11: - | M11: - | N11: - | O11: - | P11: 124217774.7
C12: ='Исходные данные'!C12 -> 0 | D12: 140217774.7 | E12: =B12+период_отсрочки -> 1900-01-30 | F12: 2021-03-16 | G12: =сего_дня-B12 -> 2021-09-14 | H12: ='Исходные данные'!L12 -> 15000000 | I12: 31000000 | J12: - | K12: - | L12: - | M12: - | N12: - | O12: - | P12: 109217774.7
B13: ='Исходные данные'!B13 -> 2021-03-19 | C13: ='Исходные данные'!C13 -> 29123331.55 | D13: 169341106.2 | E13: 2021-04-18 | G13: =сего_дня-B13 -> 1900-06-27 | H13: ='Исходные данные'!L13 -> 0 | I13: 31000000 | J13: - | K13: - | L13: - | M13: - | N13: - | O13: 138341106.2 | P13: 138341106.2
B14: ='Исходные данные'!B14 -> 2021-03-22 | C14: ='Исходные данные'!C14 -> 29227672.49 | D14: 198568778.7 | E14: 2021-04-21 | G14: =сего_дня-B14 -> 1900-06-24 | H14: ='Исходные данные'!L14 -> 0 | I14: 31000000 | J14: - | K14: - | L14: - | M14: - | N14: - | O14: 167568778.7 | P14: 167568778.7
C15: ='Исходные данные'!C15 -> 0 | D15: 198568778.7 | E15: 1900-01-30 | F15: 2021-03-23 | G15: =сего_дня-B15 -> 2021-09-14 | H15: ='Исходные данные'!L15 -> 45000000 | I15: 76000000 | J15: - | K15: - | L15: - | M15: - | N15: - | O15: - | P15: 122568778.7
C16: ='Исходные данные'!C16 -> 0 | D16: 198568778.7 | E16: 1900-01-30 | F16: 2021-03-30 | G16: =сего_дня-B16 -> 2021-09-14 | H16: ='Исходные данные'!L16 -> 10000000 | I16: 86000000 | J16: =IFERROR(IF(AND($G16>=--LEFT(J$5,3),$G16<=--RIGHT(J$5,3)),INDEX($A$6:$P$53,ROW()-5,COLUMN(задолженность)),"-"),"") -> - | K16: - | L16: - | M16: - | N16: - | O16: - | P16: 112568778.7
C17: ='Исходные данные'!C17 -> 0 | D17: 198568778.7 | E17: 1900-01-30 | F17: 2021-03-31 | G17: =сего_дня-B17 -> 2021-09-14 | H17: ='Исходные данные'!L17 -> 24615902.87 | I17: 110615902.9 | J17: - | K17: - | L17: - | M17: - | N17: - | O17: - | P17: 87952875.86
B18: ='Исходные данные'!B18 -> 2021-04-01 | C18: ='Исходные данные'!C18 -> 18203997.6 | D18: 216772776.3 | E18: 2021-05-01 | G18: =сего_дня-B18 -> 1900-06-14 | H18: ='Исходные данные'!L18 -> 0 | I18: 110615902.9 | J18: - | K18: - | L18: - | M18: - | N18: - | O18: 106156873.5 | P18: 106156873.5
C19: ='Исходные данные'!C19 -> 0 | D19: 216772776.3 | E19: 1900-01-30 | F19: 2021-04-06 | G19: =сего_дня-B19 -> 2021-09-14 | H19: ='Исходные данные'!L19 -> 10000000 | I19: 120615902.9 | J19: - | K19: - | L19: - | M19: - | N19: - | O19: - | P19: 96156873.46
C20: ='Исходные данные'!C20 -> 0 | D20: 216772776.3 | E20: 1900-01-30 | F20: 2021-04-09 | G20: =сего_дня-B20 -> 2021-09-14 | H20: ='Исходные данные'!L20 -> 10000000 | I20: 130615902.9 | J20: - | K20: - | L20: - | M20: - | N20: - | O20: - | P20: 86156873.46
C21: ='Исходные данные'!C21 -> 0 | D21: 216772776.3 | E21: 1900-01-30 | F21: 2021-04-13 | G21: =сего_дня-B21 -> 2021-09-14 | H21: ='Исходные данные'!L21 -> 3000000 | I21: 133615902.9 | J21: - | K21: - | L21: - | M21: - | N21: - | O21: - | P21: 83156873.46
C22: ='Исходные данные'!C22 -> 0 | D22: 216772776.3 | E22: 1900-01-30 | F22: 2021-04-16 | G22: =сего_дня-B22 -> 2021-09-14 | H22: ='Исходные данные'!L22 -> 5000000 | I22: 138615902.9 | J22: - | K22: - | L22: - | M22: - | N22: - | O22: - | P22: 78156873.46
C23: ='Исходные данные'!C23 -> 0 | D23: 216772776.3 | E23: 1900-01-30 | F23: 2021-04-20 | G23: =сего_дня-B23 -> 2021-09-14 | H23: ='Исходные данные'!L23 -> 4000000 | I23: 142615902.9 | J23: - | K23: - | L23: - | M23: - | N23: - | O23: - | P23: 74156873.46
B24: ='Исходные данные'!B24 -> 2021-04-22 | C24: ='Исходные данные'!C24 -> 7213916.3 | D24: 223986692.6 | G24: =сего_дня-B24 -> 1900-05-24 | H24: ='Исходные данные'!L24 -> 0 | I24: 142615902.9 | J24: - | K24: - | L24: - | M24: - | N24: - | O24: 81370789.76 | P24: 81370789.76
C25: ='Исходные данные'!C25 -> 0 | D25: 223986692.6 | E25: 1900-01-30 | F25: 2021-04-23 | G25: =сего_дня-B25 -> 2021-09-14 | H25: ='Исходные данные'!L25 -> 20000000 | I25: 162615902.9 | J25: - | K25: - | L25: - | M25: - | N25: - | O25: - | P25: 61370789.76
C26: ='Исходные данные'!C26 -> 0 | D26: 223986692.6 | E26: 1900-01-30 | F26: 2021-04-29 | G26: =сего_дня-B26 -> 2021-09-14 | H26: ='Исходные данные'!L26 -> 35952875.86 | I26: 198568778.7 | J26: =IFERROR(IF(AND($G26>=--LEFT(J$5,3),$G26<=--RIGHT(J$5,3)),INDEX($A$6:$P$53,ROW()-5,COLUMN(задолженность)),"-"),"") -> - | K26: - | L26: - | M26: - | N26: - | O26: - | P26: 25417913.9
B27: ='Исходные данные'!B27 -> 2021-05-11 | C27: ='Исходные данные'!C27 -> 29582305.87 | D27: 253568998.5 | E27: 2021-06-10 | G27: =сего_дня-B27 -> 1900-05-05 | H27: ='Исходные данные'!L27 -> 0 | I27: 198568778.7 | J27: - | K27: - | L27: - | M27: - | N27: - | O27: 55000219.77 | P27: 55000219.77
C28: ='Исходные данные'!C28 -> 0 | D28: 253568998.5 | E28: 1900-01-30 | F28: 2021-06-08 | G28: =сего_дня-B28 -> 2021-09-14 | H28: ='Исходные данные'!L28 -> 2000000 | I28: 200568778.7 | J28: - | K28: - | L28: - | M28: - | N28: - | O28: - | P28: 53000219.77
B29: ='Исходные данные'!B29 -> 2021-06-09 | C29: ='Исходные данные'!C29 -> 18932506.94 | D29: 272501505.4 | E29: 2021-07-09 | G29: =сего_дня-B29 -> 1900-04-06 | H29: ='Исходные данные'!L29 -> 0 | I29: 200568778.7 | J29: - | K29: - | L29: - | M29: - | N29: - | O29: 71932726.71 | P29: 71932726.71
C30: ='Исходные данные'!C30 -> 0 | D30: 272501505.4 | E30: 1900-01-30 | F30: 2021-06-11 | G30: =сего_дня-B30 -> 2021-09-14 | H30: ='Исходные данные'!L30 -> 10000000 | I30: 210568778.7 | J30: - | K30: - | L30: - | M30: - | N30: - | O30: - | P30: 61932726.71
C31: ='Исходные данные'!C31 -> 0 | D31: 272501505.4 | E31: 1900-01-30 | F31: 2021-06-18 | G31: =сего_дня-B31 -> 2021-09-14 | H31: ='Исходные данные'!L31 -> 10000000 | I31: 220568778.7 | J31: - | K31: - | L31: - | M31: - | N31: - | O31: - | P31: 51932726.71
C32: ='Исходные данные'!C32 -> 0 | D32: 272501505.4 | E32: 1900-01-30 | F32: 2021-06-22 | G32: =сего_дня-B32 -> 2021-09-14 | H32: ='Исходные данные'!L32 -> 40000000 | I32: 260568778.7 | J32: - | K32: - | L32: - | M32: - | N32: - | O32: - | P32: 11932726.71
B33: ='Исходные данные'!B33 -> 2021-06-28 | C33: ='Исходные данные'!C33 -> 13806701.21 | D33: 286308206.7 | E33: 2021-07-28 | G33: =сего_дня-B33 -> 1900-03-18 | H33: ='Исходные данные'!L33 -> 0 | I33: 260568778.7 | J33: - | K33: - | L33: - | M33: - | N33: 25739427.92 | O33: - | P33: 25739427.92
C34: ='Исходные данные'!C34 -> 0 | D34: 286308206.7 | E34: 1900-01-30 | F34: 2021-06-29 | G34: =сего_дня-B34 -> 2021-09-14 | H34: ='Исходные данные'!L34 -> 8000000 | I34: 268568778.7 | J34: - | K34: - | L34: - | M34: - | N34: - | O34: - | P34: 17739427.92
B35: ='Исходные данные'!B35 -> 2021-07-01 | C35: ='Исходные данные'!C35 -> 28592703.55 | D35: 314900910.2 | E35: 2021-07-31 | G35: =сего_дня-B35 -> 1900-03-15 | H35: ='Исходные данные'!L35 -> 0 | I35: 268568778.7 | J35: - | K35: - | L35: - | M35: - | N35: 46332131.47 | O35: - | P35: 46332131.47
C36: ='Исходные данные'!C36 -> 0 | D36: 314900910.2 | E36: 1900-01-30 | F36: 2021-07-02 | G36: =сего_дня-B36 -> 2021-09-14 | H36: ='Исходные данные'!L36 -> 1000000 | I36: 269568778.7 | J36: =IFERROR(IF(AND($G36>=--LEFT(J$5,3),$G36<=--RIGHT(J$5,3)),INDEX($A$6:$P$53,ROW()-5,COLUMN(задолженность)),"-"),"") -> - | K36: - | L36: - | M36: - | N36: - | O36: - | P36: 45332131.47
C37: ='Исходные данные'!C37 -> 0 | D37: 314900910.2 | E37: 1900-01-30 | F37: 2021-07-09 | G37: =сего_дня-B37 -> 2021-09-14 | H37: ='Исходные данные'!L37 -> 3000000 | I37: 272568778.7 | J37: - | K37: - | L37: - | M37: - | N37: - | O37: - | P37: 42332131.47
C38: ='Исходные данные'!C38 -> 0 | D38: 314900910.2 | E38: 1900-01-30 | F38: 2021-07-13 | G38: =сего_дня-B38 -> 2021-09-14 | H38: ='Исходные данные'!L38 -> 5000000 | I38: 277568778.7 | J38: - | K38: - | L38: - | M38: - | N38: - | O38: - | P38: 37332131.47
B39: ='Исходные данные'!B39 -> 2021-07-15 | C39: ='Исходные данные'!C39 -> 24757299.5 | D39: 339658209.7 | E39: 2021-08-14 | G39: =сего_дня-B39 -> 1900-03-01 | H39: ='Исходные данные'!L39 -> 0 | I39: 277568778.7 | J39: - | K39: - | L39: - | M39: - | N39: 62089430.97 | O39: - | P39: 62089430.97
B40: ='Исходные данные'!B40 -> 2021-07-27 | C40: ='Исходные данные'!C40 -> 28858860.24 | D40: 368517069.9 | E40: 2021-08-26 | G40: =сего_дня-B40 -> 1900-02-18 | H40: ='Исходные данные'!L40 -> 0 | I40: 277568778.7 | J40: - | K40: - | L40: - | M40: 90948291.21 | N40: - | O40: - | P40: 90948291.21
C41: ='Исходные данные'!C41 -> 0 | D41: 368517069.9 | E41: 1900-01-30 | F41: 2021-07-30 | G41: =сего_дня-B41 -> 2021-09-14 | H41: ='Исходные данные'!L41 -> 8739427.92 | I41: 286308206.7 | J41: - | K41: - | L41: - | M41: - | N41: - | O41: - | P41: 82208863.29
B42: ='Исходные данные'!B42 -> 2021-08-03 | C42: ='Исходные данные'!C42 -> 24581658.96 | D42: 393098728.9 | E42: 2021-09-02 | G42: =сего_дня-B42 -> 1900-02-11 | H42: ='Исходные данные'!L42 -> 0 | I42: 286308206.7 | J42: - | K42: - | L42: - | M42: 106790522.2 | N42: - | O42: - | P42: 106790522.2
C43: ='Исходные данные'!C43 -> 0 | D43: 393098728.9 | E43: 1900-01-30 | F43: 2021-08-10 | G43: =сего_дня-B43 -> 2021-09-14 | H43: ='Исходные данные'!L43 -> 20000000 | I43: 306308206.7 | J43: - | K43: - | L43: - | M43: - | N43: - | O43: - | P43: 86790522.25
C44: ='Исходные данные'!C44 -> 0 | D44: 393098728.9 | E44: 1900-01-30 | F44: 2021-08-20 | G44: =сего_дня-B44 -> 2021-09-14 | H44: ='Исходные данные'!L44 -> 20000000 | I44: 326308206.7 | J44: - | K44: - | L44: - | M44: - | N44: - | O44: - | P44: 66790522.25
B45: ='Исходные данные'!B45 -> 2021-08-26 | C45: ='Исходные данные'!C45 -> 35550253.54 | D45: 428648982.4 | E45: 2021-09-25 | G45: =сего_дня-B45 -> 1900-01-19 | H45: ='Исходные данные'!L45 -> 0 | I45: 326308206.7 | J45: - | K45: - | L45: 102340775.8 | M45: - | N45: - | O45: - | P45: 102340775.8
B46: ='Исходные данные'!B46 -> 2021-08-31 | C46: ='Исходные данные'!C46 -> 6952888.01 | D46: 435601870.5 | E46: 2021-09-30 | F46: 2021-08-31 | G46: =сего_дня-B46 -> 1900-01-14 | H46: ='Исходные данные'!L46 -> 10000000 | I46: 336308206.7 | J46: =IFERROR(IF(AND($G46>=--LEFT(J$5,3),$G46<=--RIGHT(J$5,3)),INDEX($A$6:$P$53,ROW()-5,COLUMN(задолженность)),"-"),"") -> - | K46: 99293663.8 | L46: - | M46: - | N46: - | O46: - | P46: 99293663.8
B47: ='Исходные данные'!B47 -> 2021-09-03 | C47: ='Исходные данные'!C47 -> 6911768.38 | D47: 442513638.8 | E47: 2021-10-03 | G47: =сего_дня-B47 -> 1900-01-11 | H47: ='Исходные данные'!L47 -> 0 | I47: 336308206.7 | J47: - | K47: 106205432.2 | L47: - | M47: - | N47: - | O47: - | P47: 106205432.2
C48: ='Исходные данные'!C48 -> 0 | D48: 442513638.8 | E48: 1900-01-30 | F48: 2021-09-07 | G48: =сего_дня-B48 -> 2021-09-14 | H48: ='Исходные данные'!L48 -> 5000000 | I48: 341308206.7 | J48: - | K48: - | L48: - | M48: - | N48: - | O48: - | P48: 101205432.2
C49: ='Исходные данные'!C49 -> 0 | D49: 442513638.8 | E49: 1900-01-30 | F49: 2021-09-10 | G49: =сего_дня-B49 -> 2021-09-14 | H49: ='Исходные данные'!L49 -> 25000000 | I49: 366308206.7 | J49: - | K49: - | L49: - | M49: - | N49: - | O49: - | P49: 76205432.18
K50: - | L50: - | M50: - | N50: - | O50: -
K51: - | L51: - | M51: - | N51: - | O51: -
C53: =SUM(C6:C51) -> 442513638.8 | H53: =SUM(H6:H51) -> 366308206.7 | J53: =SUM(J6:J51) -> 0 | K53: =SUM(K6:K51) -> 205499096 | L53: 102340775.8 | M53: 197738813.5 | N53: 134160990.4 | O53: 1037050867 | P53: =SUM(P6:P51) -> 3472624590

Sheet Контроль
B1: Отгрузка | C1: Дата оплаты | D1: Оплата | E1: Задолженность нарастающим итогом, итого, руб.
B3: 442513638.8 | D3: 366308206.6 | E3: 76205432.18
A4: 2021-02-04 | B4: 25938822.24 | C4: 2021-09-09 | E4: 25938822.24
A5: 2021-02-08 | B5: 29707567.85 | C5: 2021-09-09 | E5: 55646390.09 | F5: откуда это число?
A6: 2021-02-15 | B6: 29615092.08 | C6: 2021-09-09 | E6: 85261482.17
A7: 2021-02-26 | B7: 25354420.7 | C7: 2021-09-09 | E7: 110615902.9
A8: 2021-03-03 | B8: 29601871.82 | C8: 2021-09-09 | D8: 1000000 | E8: 139217774.7
A9: 2021-03-12 | C9: 2021-09-09 | D9: 15000000 | E9: 124217774.7
A10: 2021-03-16 | C10: 2021-09-09 | D10: 15000000 | E10: 109217774.7
A11: 2021-03-19 | B11: 29123331.55 | C11: 2021-09-09 | E11: 138341106.2
A12: 2021-03-22 | B12: 29227672.49 | C12: 2021-09-09 | E12: 167568778.7
A13: 2021-03-23 | C13: 2021-09-09 | D13: 45000000 | E13: 122568778.7
A14: 2021-03-30 | C14: 2021-09-09 | D14: 10000000 | E14: 112568778.7
A15: 2021-03-31 | C15: 2021-09-09 | D15: 24615902.87 | E15: 87952875.86
A16: 2021-04-01 | B16: 18203997.6 | C16: 2021-09-09 | E16: 106156873.5
A17: 2021-04-06 | C17: 2021-09-09 | D17: 10000000 | E17: 96156873.46
A18: 2021-04-09 | C18: 2021-09-09 | D18: 10000000 | E18: 86156873.46
A19: 2021-04-13 | C19: 2021-09-09 | D19: 3000000 | E19: 83156873.46
A20: 2021-04-16 | C20: 2021-09-09 | D20: 5000000 | E20: 78156873.46
A21: 2021-04-20 | C21: 2021-09-09 | D21: 4000000 | E21: 74156873.46
A22: 2021-04-22 | B22: 7213916.3 | C22: 2021-09-09 | E22: 81370789.76
A23: 2021-04-23 | C23: 2021-09-09 | D23: 20000000 | E23: 61370789.76
A24: 2021-04-29 | C24: 2021-09-09 | D24: 35952875.86 | E24: 25417913.9
A25: 2021-05-11 | B25: 29582305.87 | C25: 2021-09-09 | E25: 55000219.77
A26: 2021-06-08 | C26: 2021-09-09 | D26: 2000000 | E26: 53000219.77
A27: 2021-06-09 | B27: 18932506.94 | C27: 2021-09-09 | E27: 71932726.71
A28: 2021-06-11 | C28: 2021-09-09 | D28: 10000000 | E28: 61932726.71
A29: 2021-06-18 | C29: 2021-09-09 | D29: 10000000 | E29: 51932726.71
A30: 2021-06-22 | C30: 2021-09-09 | D30: 40000000 | E30: 11932726.71
A31: 2021-06-28 | B31: 13806701.21 | C31: 2021-09-09 | E31: 25739427.92
A32: 2021-06-29 | C32: 2021-09-09 | D32: 8000000 | E32: 17739427.92
A33: 2021-07-01 | B33: 28592703.55 | C33: 2021-09-09 | E33: 46332131.47
A34: 2021-07-02 | C34: 2021-09-09 | D34: 1000000 | E34: 45332131.47
A35: 2021-07-09 | C35: 2021-09-09 | D35: 3000000 | E35: 42332131.47
A36: 2021-07-13 | C36: 2021-09-09 | D36: 5000000 | E36: 37332131.47
A37: 2021-07-15 | B37: 24757299.5 | C37: 2021-09-09 | E37: 62089430.97
A38: 2021-07-27 | B38: 28858860.24 | C38: 2021-09-09 | E38: 90948291.21
A39: 2021-07-30 | C39: 2021-09-09 | D39: 8739427.92 | E39: 82208863.29
A40: 2021-08-03 | B40: 24581658.96 | C40: 2021-09-09 | E40: 106790522.2
A41: 2021-08-10 | C41: 2021-09-09 | D41: 20000000 | E41: 86790522.25
A42: 2021-08-20 | C42: 2021-09-09 | D42: 20000000 | E42: 66790522.25
A43: 2021-08-26 | B43: 35550253.54 | C43: 2021-09-09 | E43: 102340775.8
A44: 2021-08-31 | B44: 6952888.01 | C44: 2021-09-09 | D44: 10000000 | E44: 99293663.8
A45: 2021-09-03 | B45: 6911768.38 | C45: 2021-09-09 | E45: 106205432.2
A46: 2021-09-07 | C46: 2021-09-09 | D46: 5000000 | E46: 101205432.2
A47: 2021-09-10 | C47: 2021-09-09 | D47: 25000000 | E47: 76205432.18
A48: Итого | B48: 442513638.8 | D48: 366308206.7 | E48: 76205432.18
A52: отчет в 1с показывает такое распределение по срокам
A53: Покупатель | B53: Общая задолженность | D53: Общая задолженность по срокам долга
D54: До 7 дней | E54: От 8 до 15 дней | F54: От 16 до 30 дней | G54: От 31 до 60 дней | H54: От 61 до 90 дней | I54: Свыше 90 дней
B55: 76 205 432 | E55: 13 864 656 | F55: 35 550 254 | G55: 26 790 522

Sheet ДАТА отгрузка_оплата
A1: Дата отгрузки | B1: Сумма отгрузки | C1: Дата оплаты | D1: Сумма оплаты
B3: 442513638.8 | D3: 366308206.6 | E3: 76205432.18
A4: 2021-02-04 | B4: 25938822.24 | E4: 25938822.24
A5: 2021-02-08 | B5: 29707567.85 | E5: 55646390.09
A6: 2021-02-15 | B6: 29615092.08 | E6: 85261482.17
A7: 2021-02-26 | B7: 25354420.7 | E7: 110615902.9
A8: 2021-03-03 | B8: 29601871.82 | C8: 2021-03-03 | D8: 1000000 | E8: 139217774.7
C9: 2021-03-12 | D9: 15000000 | E9: 124217774.7
C10: 2021-03-16 | D10: 15000000 | E10: 109217774.7
A11: 2021-03-19 | B11: 29123331.55 | E11: 138341106.2
A12: 2021-03-22 | B12: 29227672.49 | E12: 167568778.7
C13: 2021-03-23 | D13: 45000000 | E13: 122568778.7
C14: 2021-03-30 | D14: 10000000 | E14: 112568778.7
C15: 2021-03-31 | D15: 24615902.87 | E15: 87952875.86
A16: 2021-04-01 | B16: 18203997.6 | E16: 106156873.5
C17: 2021-04-06 | D17: 10000000 | E17: 96156873.46
C18: 2021-04-09 | D18: 10000000 | E18: 86156873.46
C19: 2021-04-13 | D19: 3000000 | E19: 83156873.46
C20: 2021-04-16 | D20: 5000000 | E20: 78156873.46
C21: 2021-04-20 | D21: 4000000 | E21: 74156873.46
A22: 2021-04-22 | B22: 7213916.3 | E22: 81370789.76
C23: 2021-04-23 | D23: 20000000 | E23: 61370789.76
C24: 2021-04-29 | D24: 35952875.86 | E24: 25417913.9
A25: 2021-05-11 | B25: 29582305.87 | E25: 55000219.77
C26: 2021-06-08 | D26: 2000000 | E26: 53000219.77
A27: 2021-06-09 | B27: 18932506.94 | E27: 71932726.71
C28: 2021-06-11 | D28: 10000000 | E28: 61932726.71
C29: 2021-06-18 | D29: 10000000 | E29: 51932726.71
C30: 2021-06-22 | D30: 40000000 | E30: 11932726.71
A31: 2021-06-28 | B31: 13806701.21 | E31: 25739427.92
C32: 2021-06-29 | D32: 8000000 | E32: 17739427.92
A33: 2021-07-01 | B33: 28592703.55 | E33: 46332131.47
C34: 2021-07-02 | D34: 1000000 | E34: 45332131.47
C35: 2021-07-09 | D35: 3000000 | E35: 42332131.47
C36: 2021-07-13 | D36: 5000000 | E36: 37332131.47
A37: 2021-07-15 | B37: 24757299.5 | E37: 62089430.97
A38: 2021-07-27 | B38: 28858860.24 | E38: 90948291.21
C39: 2021-07-30 | D39: 8739427.92 | E39: 82208863.29
A40: 2021-08-03 | B40: 24581658.96 | E40: 106790522.2
C41: 2021-08-10 | D41: 20000000 | E41: 86790522.25
C42: 2021-08-20 | D42: 20000000 | E42: 66790522.25
A43: 2021-08-26 | B43: 35550253.54 | E43: 102340775.8
A44: 2021-08-31 | B44: 6952888.01 | D44: 10000000 | E44: 99293663.8
A45: 2021-09-03 | B45: 6911768.38 | E45: 106205432.2
C46: 2021-09-07 | D46: 5000000 | E46: 101205432.2
C47: 2021-09-10 | D47: 25000000 | E47: 76205432.18
A48: Итого | B48: =SUM(B4:B47) -> 442513638.8 | D48: =SUM(D4:D47) -> 366308206.7 | E48: 76205432.18
A52: отчет в 1с показывает такое распределение по срокам
A53: Покупатель | B53: Общая задолженность | C53: Общая задолженность по срокам долга
C54: До 7 дней | D54: От 8 до 15 дней | E54: От 16 до 30 дней | F54: От 31 до 60 дней | G54: От 61 до 90 дней | H54: Свыше 90 дней
B55: 76 205 432 | D55: 13 864 656 | E55: 35 550 254 | F55: 26 790 522
